bitfinex-derivatives/quotes_SOLF0:USTF0_20241002
["timestamp","ask_amount","ask_price","bid_price","bid_amount"]
[1727891117494,5.66,145.66,145.58,3.47310941]
[1727891117992,3.4334,145.64,145.61,3.4338]
[1727891118905,16.47,145.65,145.57,16.47]
[1727891119203,16.47,145.65,145.55,23.58272]
[1727891119403,3.4341,145.61,145.58,3.4345]
[1727891120101,16.47,145.65,145.57,19.9680491]
[1727891120300,16.47,145.65,145.57,16.47]
[1727891120701,3.4334,145.64,145.61,3.4338]
[1727891121099,16.47,145.65,145.57,19.92889952]
[1727891121300,3.4335,145.63,145.6,3.4341]
[1727891122501,5.66,145.66,145.57,19.92889952]
[1727891122702,5.66,145.66,145.59,16.47]
[1727891123104,0.12502,145.67,145.61,16.47]
[1727891123302,0.12502,145.67,145.65,3.4329]
[1727891123504,0.12502,145.67,145.63,16.47]
[1727891123908,0.12502,145.67,145.65,3.4328]
[1727891124207,0.12502,145.67,145.63,16.47]
[1727891124398,0.12502,145.67,145.63,22.11]
[1727891124808,0.12502,145.67,145.66,3.4328]
[1727891125507,0.12502,145.67,145.63,22.11]
[1727891125808,0.12502,145.67,145.65,3.433]
[1727891126613,0.12502,145.67,145.63,22.11]
[1727891126909,0.12502,145.67,145.66,3.4328]
[1727891128502,0.12502,145.67,145.65,16.47]
[1727891128710,0.12502,145.67,145.65,3.433]
[1727891129202,0.12502,145.67,145.62,6.9652]
[1727891129401,0.12502,145.67,145.6,7.0177]
[1727891129800,3.4329,145.66,145.63,3.4333]
[1727891132508,3.4329,145.66,145.62,3.4336]
[1727891133009,0.12502,145.67,145.6,7.0177]
[1727891133206,0.12502,145.67,145.6,1.3777]
[1727891133606,0.12502,145.67,145.57,3.4349]
[1727891133607,3.4343,145.6,145.57,3.4349]
[1727891133803,3.43964631,145.63,145.55,0.12502]
[1727891134010,16.47,145.62,145.55,0.12502]
[1727891134212,19.82140624,145.62,145.55,3.56032]
[1727891134704,3.4344,145.6,145.57,3.4349]
[1727891136809,22.11,145.64,145.55,0.12502]
[1727891137107,5.64,145.63,145.56,16.47]
[1727891137312,16.47,145.66,145.57,3.42150463]
[1727891137506,5.64,145.65,145.58,16.47]
[1727891137812,5.64,145.65,145.58,19.91864307]
[1727891138011,9.0731,145.65,145.61,3.4337]
[1727891138404,0.12502,145.67,145.6,16.47]
[1727891138602,5.76502,145.67,145.63,3.4333]
[1727891139204,5.76502,145.67,145.64,3.433]
[1727891139712,5.76502,145.67,145.61,22.11]
[1727891140015,0.12502,145.67,145.65,3.4329]
[1727891140610,0.12502,145.67,145.66,3.4328]
[1727891143223,0.12502,145.67,145.64,3.4332]
[1727891144524,0.12502,145.67,145.65,3.4328]
[1727891146528,0.12502,145.67,145.62,16.47]
[1727891146730,0.12502,145.67,145.64,3.4332]
[1727891147330,3.55762,145.67,145.64,3.4332]
[1727891147834,0.12502,145.67,145.62,16.47]
[1727891148330,0.12502,145.67,145.63,16.47]
[1727891150236,0.12502,145.67,145.66,3.4328]
[1727891151338,0.12502,145.67,145.64,3.4332]
[1727891152241,3.55772,145.67,145.64,3.4332]
[1727891152534,0.12502,145.67,145.66,3.4328]
[1727891153738,0.12502,145.67,145.66,19.9028]
[1727891154038,1.2817,145.72,145.66,19.9028]
[1727891154039,5.64,145.76,145.66,19.86568517]
[1727891154234,5.64,145.76,145.69,16.47]
[1727891154635,5.64,145.76,145.71,3.4314]
[1727891155336,3.431,145.74,145.71,3.4314]
[1727891155735,5.64,145.76,145.72,3.4314]
[1727891156044,2.6093,145.77,145.72,3.4314]
[1727891156435,1.2791,145.78,145.72,3.4314]
[1727891156942,0.12502,145.79,145.71,16.47]
[1727891157135,3.43,145.78,145.74,3.4307]
[1727891157542,3.4303,145.77,145.73,19.901]
[1727891157836,3.4303,145.77,145.73,16.47]
[1727891158041,0.12502,145.79,145.73,16.47]
[1727891158838,3.4301,145.78,145.74,3.4307]
[1727891159037,0.12502,145.79,145.73,16.47]
[1727891159442,3.55482,145.79,145.73,16.47]
[1727891159848,3.55482,145.79,145.73,22.11]
[1727891160045,3.55482,145.79,145.75,3.4305]
[1727891160647,16.59502,145.79,145.71,5.64]
[1727891160839,16.59502,145.79,145.69,16.47]
[1727891161041,3.4312,145.73,145.7,3.4317]
[1727891161237,16.47,145.77,145.67,17.98152]
[1727891161438,5.64,145.76,145.67,17.98152]
[1727891161644,16.47,145.75,145.67,17.98152]
[1727891162033,3.4317,145.71,145.68,3.4323]
[1727891162237,16.47,145.75,145.67,17.98152]
[1727891162845,3.432,145.7,145.67,21.41392]
[1727891163053,3.432,145.7,145.67,3.55742]
[1727891163742,5.64,145.76,145.67,16.59502]
[1727891163941,1.266,145.78,145.69,16.47]
[1727891164244,3.4303,145.77,145.74,3.4309]
[1727891164450,1.266,145.78,145.7,19.212]
[1727891164844,1.266,145.78,145.7,2.742]
[1727891165442,3.4311,145.74,145.7,2.742]
[1727891166037,3.4311,145.74,145.71,3.4315]
[1727891166643,3.4308,145.75,145.72,3.4313]
[1727891166848,1.266,145.78,145.7,2.742]
[1727891167041,1.266,145.78,145.7,1.3957]
[1727891167444,16.47,145.77,145.67,16.59502]
[1727891167744,16.47,145.77,145.67,22.23502]
[1727891167945,16.47,145.75,145.68,3.4321]
[1727891168145,16.47,145.75,145.67,0.12502]
[1727891168146,16.47,145.73,145.67,0.12502]
[1727891168355,4.80079623,145.72,145.67,0.12502]
[1727891168543,3.4323,145.68,145.67,0.12502]
[1727891168743,1.4049,145.72,145.67,0.12502]
[1727891169750,3.4315,145.72,145.67,0.12502]
[1727891170342,3.4315,145.72,145.65,13.59502]
[1727891170547,0.12502,145.73,145.69,16.47]
[1727891170751,0.12502,145.73,145.69,19.9019]
[1727891170955,3.4314,145.72,145.69,16.47]
[1727891171149,0.12502,145.73,145.63,5.64]
[1727891171150,0.12502,145.73,145.67,16.47]
[1727891171350,0.12502,145.73,145.67,3.4324]
[1727891171653,0.12502,145.73,145.63,5.64]
[1727891171654,3.4327,145.67,145.63,16.47]
[1727891171853,5.64,145.7,145.63,3.4334]
[1727891172249,5.64,145.7,145.62,1.4035]
[1727891172750,3.4328,145.66,145.63,3.4334]
[1727891172955,5.64,145.7,145.62,1.4035]
[1727891173252,5.64,145.71,145.65,16.47]
[1727891173950,3.4315,145.72,145.65,22.11]
[1727891174154,0.12502,145.73,145.67,16.47]
[1727891174353,3.4314,145.72,145.69,3.4319]
[1727891176455,0.12502,145.73,145.67,16.47]
[1727891176649,3.55622,145.73,145.7,3.4317]
[1727891177652,0.12502,145.73,145.72,3.4314]
[1727891178047,0.12502,145.73,145.69,16.47]
[1727891179254,0.12502,145.73,145.69,22.11]
[1727891179752,0.12502,145.73,145.69,1.2814]
[1727891179949,0.12502,145.73,145.68,1.2901]
[1727891181554,3.4317,145.71,145.68,3.4322]
[1727891182053,0.12502,145.73,145.66,22.11]
[1727891182556,3.4322,145.69,145.66,25.5426]
[1727891183450,0.12502,145.73,145.64,19.0729]
[1727891183656,16.59502,145.73,145.64,19.0729]
[1727891184151,5.64,145.72,145.66,16.47]
[1727891184348,0.12502,145.73,145.66,16.47]
[1727891184747,3.4315,145.72,145.69,3.432]
[1727891185654,3.55622,145.73,145.7,3.4317]
[1727891186059,0.12502,145.73,145.68,16.47]
[1727891186262,0.12502,145.73,145.72,3.4314]
[1727891186663,0.12502,145.73,145.68,16.47]
[1727891186854,0.12502,145.73,145.7,3.4316]
[1727891187056,0.12502,145.73,145.68,16.47]
[1727891187252,0.12502,145.73,145.69,3.4319]
[1727891187457,0.12502,145.73,145.68,16.47]
[1727891188961,0.12502,145.73,145.7,3.4317]
[1727891189767,0.12502,145.73,145.68,16.47]
[1727891189966,0.12502,145.73,145.71,3.4316]
[1727891190265,0.12502,145.73,145.7,16.47]
[1727891190864,3.55622,145.73,145.7,16.47]
[1727891191161,0.12502,145.73,145.7,19.9017]
[1727891191364,0.12502,145.73,145.7,16.47]
[1727891191566,0.12502,145.73,145.71,3.4315]
[1727891191864,0.12502,145.73,145.7,16.47]
[1727891192765,0.12502,145.73,145.72,3.4314]
[1727891194074,0.12502,145.73,145.72,19.9014]
[1727891195266,3.55492,145.79,145.75,3.4304]
[1727891195666,3.55492,145.79,145.72,19.214]
[1727891195866,3.55492,145.79,145.76,3.4304]
[1727891197175,0.12502,145.79,145.73,16.47]
[1727891197564,0.12502,145.79,145.77,3.43]
[1727891198482,0.12502,145.79,145.78,3.4299]
[1727891199692,0.12502,145.85,145.84,3.4285]
[1727891199877,0.12502,145.85,145.81,16.47]
[1727891200786,0.12502,145.85,145.83,16.47]
[1727891200987,0.12502,145.85,145.84,3.4285]
[1727891201284,16.47,145.94,145.84,3.4285]
[1727891201285,1.3643,145.95,145.88,16.47]
[1727891201587,4.7904,145.95,145.9,3.4271]
[1727891201773,4.7904,145.95,145.9,19.8971]
[1727891202279,3.4258,145.96,145.9,19.8971]
[1727891202484,0.12502,145.97,145.9,16.47]
[1727891202678,16.47,145.96,145.86,22.09]
[1727891202873,3.55212,145.91,145.86,22.09]
[1727891203080,0.12502,145.91,145.86,22.09]
[1727891203479,0.12502,145.91,145.87,3.4278]
[1727891203885,0.12502,145.91,145.88,3.4274]
[1727891204079,0.12502,145.91,145.86,5.62]
[1727891204589,0.12502,145.91,145.89,3.4272]
[1727891205781,0.12502,145.91,145.86,5.62]
[1727891205981,0.12502,145.91,145.9,3.4271]
[1727891206480,0.12502,145.91,145.89,3.4273]
[1727891206681,0.12502,145.91,145.85,29.0234]
[1727891206886,0.12502,145.91,145.86,5.62]
[1727891207086,0.12502,145.91,145.84,5.62]
[1727891207388,5.62,145.9,145.82,31.96]
[1727891207881,3.4279,145.87,145.83,3.4286]
[1727891208088,35.463427,145.9,145.81,6.991]
[1727891208284,1.3942,145.89,145.81,6.991]
[1727891208581,3.4287,145.84,145.81,6.991]
[1727891208789,1.3942,145.89,145.81,1.371]
[1727891208985,3.4285,145.85,145.81,4.8001]
[1727891209186,3.4285,145.85,145.81,1.371]
[1727891211087,3.4285,145.85,145.81,4.8001]
[1727891212889,0.12502,145.91,145.84,26.34]
[1727891213085,0.12502,145.91,145.84,29.76819904]
[1727891213485,3.55202,145.91,145.87,3.4277]
[1727891213785,0.12502,145.91,145.86,5.62]
[1727891214589,0.12502,145.91,145.89,3.4273]
[1727891216990,0.12502,145.91,145.86,5.62]
[1727891217285,0.12502,145.91,145.88,3.4275]
[1727891218185,0.12502,145.91,145.86,5.62]
[1727891218186,0.12502,145.91,145.87,3.4277]
[1727891218686,3.55202,145.91,145.87,3.4277]
[1727891219189,3.55202,145.91,145.88,3.4276]
[1727891219388,0.12502,145.91,145.88,3.4276]
[1727891219986,0.12502,145.91,145.9,3.4271]
[1727891220186,0.12502,145.91,145.86,31.96]
[1727891220383,0.12502,145.91,145.86,26.34]
[1727891220686,3.4276,145.88,145.85,3.4283]
[1727891221589,3.4275,145.89,145.85,3.4283]
[1727891221799,3.4275,145.89,145.83,5.62]
[1727891221800,9.04312701,145.9,145.81,27.711]
[1727891221993,1.3702,145.89,145.81,1.371]
[1727891222296,3.4278,145.88,145.84,3.4284]
[1727891223087,4.7977,145.89,145.86,3.428]
[1727891223299,5.62,145.9,145.83,29.68829502]
[1727891223495,0.12502,145.91,145.84,5.62]
[1727891223698,0.12502,145.91,145.87,16.46]
[1727891223996,0.12502,145.91,145.88,16.46]
[1727891224196,0.12502,145.91,145.9,3.4271]
[1727891224798,0.12502,145.91,145.9,19.8871]
[1727891227000,0.12502,145.91,145.89,3.4273]
[1727891227392,0.12502,145.91,145.88,16.46]
[1727891227597,0.12502,145.91,145.88,19.8875]
[1727891228399,0.12502,145.91,145.84,16.46]
[1727891229605,0.12502,145.91,145.85,3.4282]
[1727891229606,3.4275,145.89,145.85,3.4282]
[1727891229996,3.4275,145.89,145.84,16.46]
[1727891230302,3.4272,145.9,145.84,16.46]
[1727891230690,3.4272,145.9,145.87,3.4277]
[1727891233705,0.12502,145.91,145.86,16.46]
[1727891233706,0.12502,145.91,145.88,3.4274]
[1727891233904,0.12502,145.91,145.86,16.46]
[1727891234598,0.12502,145.91,145.89,3.4272]
[1727891235001,0.12502,145.91,145.9,19.8871]
[1727891235202,0.12502,145.91,145.88,16.46]
[1727891235397,3.55202,145.91,145.88,16.46]
[1727891235615,0.12502,145.91,145.87,3.4277]
[1727891235905,0.12502,145.91,145.86,16.46]
[1727891236507,3.4276,145.88,145.84,16.46]
[1727891237001,3.4276,145.88,145.85,3.4282]
[1727891237602,3.4275,145.89,145.86,3.4281]
[1727891239812,5.62,145.9,145.86,16.46]
[1727891240307,9.0473,145.9,145.87,3.4277]
[1727891241407,3.55212,145.91,145.88,3.4275]
[1727891241813,0.12502,145.91,145.9,3.4271]
[1727891243013,3.55202,145.91,145.88,19.8875]
[1727891243215,3.55202,145.91,145.84,16.46]
[1727891243216,0.12502,145.91,145.84,16.46]
[1727891243609,3.4277,145.88,145.85,3.4282]
[1727891243810,16.58502,145.91,145.82,22.08]
[1727891244108,3.4277,145.88,145.85,3.4281]
[1727891244303,4.65315568,145.9,145.82,16.46]
[1727891244508,5.62,145.89,145.82,16.46]
[1727891244716,3.428,145.87,145.84,3.4284]
[1727891244918,5.62,145.89,145.8,17.7449]
[1727891244919,22.08,145.89,145.8,17.7449]
[1727891245220,22.08,145.89,145.81,3.4292]
[1727891245221,2.6949,145.88,145.81,3.4292]
[1727891245421,2.6949,145.88,145.8,17.7449]
[1727891245814,3.4282,145.86,145.8,17.7449]
[1727891246013,2.6949,145.88,145.8,17.7449]
[1727891246420,3.4282,145.86,145.82,3.4289]
[1727891246615,2.6949,145.88,145.82,3.4289]
[1727891247019,3.4285,145.85,145.82,3.4289]
[1727891247420,2.6949,145.88,145.83,3.4287]
[1727891248314,2.6949,145.88,145.84,3.4284]
[1727891249118,3.4281,145.86,145.84,3.4284]
[1727891249518,16.46,145.87,145.79,0.12502]
[1727891249718,16.46,145.85,145.79,0.12502]
[1727891249915,5.62,145.84,145.79,0.12502]
[1727891250115,3.4292,145.82,145.79,3.55462]
[1727891250524,3.4289,145.83,145.8,3.4293]
[1727891253020,5.62,145.84,145.79,0.12502]
[1727891253225,3.4289,145.83,145.79,3.55452]
[1727891253527,16.46,145.83,145.79,0.12502]
[1727891253825,17.8579,145.83,145.79,0.12502]
[1727891254324,3.4291,145.82,145.79,3.55462]
[1727891254527,17.8579,145.83,145.79,0.12502]
[1727891254725,3.45702723,145.82,145.79,0.12502]
[1727891255024,3.4295,145.8,145.79,0.12502]
[1727891255224,9.0495,145.8,145.79,0.12502]
[1727891255920,9.0491,145.82,145.79,3.55452]
[1727891256129,9.0491,145.82,145.79,0.12502]
[1727891256530,1.3979,145.83,145.79,0.12502]
[1727891256720,5.62,145.82,145.79,0.12502]
[1727891257318,3.4286,145.84,145.81,3.429]
[1727891257516,9.0486,145.84,145.81,3.429]
[1727891257722,17.7729,145.87,145.79,16.58502]
[1727891257922,17.7729,145.87,145.83,3.4287]
[1727891257923,5.62,145.86,145.83,3.4287]
[1727891258129,5.62,145.86,145.79,16.58502]
[1727891258331,3.4287,145.84,145.81,3.4291]
[1727891259030,3.4287,145.84,145.82,3.4289]
[1727891259227,17.7729,145.87,145.79,16.58502]
[1727891259433,5.62,145.86,145.79,16.58502]
[1727891260034,5.62,145.86,145.84,3.4284]
[1727891260331,5.62,145.86,145.79,16.58502]
[1727891260732,5.62,145.86,145.79,0.12502]
[1727891261129,5.62,145.86,145.83,3.4286]
[1727891261130,9.0481,145.86,145.83,3.4286]
[1727891263042,3.4283,145.85,145.83,3.4286]
[1727891263947,9.0482,145.86,145.83,3.4286]
[1727891265141,3.4282,145.86,145.83,3.4286]
[1727891265335,5.62,145.88,145.81,16.46]
[1727891266435,3.4282,145.86,145.83,3.4286]
[1727891267640,3.4285,145.84,145.81,3.4291]
[1727891267945,16.46,145.87,145.79,5.74502]
[1727891268138,3.4284,145.85,145.81,3.4292]
[1727891268334,16.46,145.87,145.79,22.20502]
[1727891269138,3.4285,145.85,145.81,3.4291]
[1727891270744,3.4285,145.85,145.82,3.4289]
[1727891274246,16.46,145.89,145.81,16.46]
[1727891274556,16.58502,145.91,145.83,16.46]
[1727891274851,9.17202,145.91,145.88,3.4276]
[1727891275351,0.12502,145.91,145.86,16.46]
[1727891276147,0.12502,145.91,145.89,3.4272]
[1727891277357,0.12502,145.91,145.9,3.4271]
[1727891279060,0.12502,145.91,145.89,3.4273]
[1727891279757,0.12502,145.91,145.86,5.62]
[1727891279957,0.12502,145.91,145.86,22.08]
[1727891280360,0.12502,145.91,145.84,4.0605]
[1727891280557,16.58502,145.91,145.84,2.7939]
[1727891280756,16.46,145.89,145.84,2.7939]
[1727891281056,16.46,145.89,145.8,2.6373]
[1727891281057,5.62,145.88,145.8,2.6373]
[1727891281261,22.08,145.88,145.8,2.6373]
[1727891281659,16.46,145.86,145.8,2.6373]
[1727891282354,22.08,145.88,145.8,2.6373]
[1727891282551,3.4282,145.86,145.83,3.4288]
[1727891283460,22.08,145.88,145.8,2.6373]
[1727891283761,3.4283,145.85,145.82,3.4289]
[1727891284859,3.4283,145.85,145.8,2.6373]
[1727891285158,3.4283,145.85,145.81,3.4291]
[1727891285356,3.4283,145.85,145.8,2.6373]
[1727891286156,3.4283,145.85,145.82,3.4289]
[1727891286357,22.08,145.87,145.8,2.6373]
[1727891286561,3.4281,145.86,145.8,2.6373]
[1727891286757,5.62,145.87,145.8,19.0973]
[1727891287259,5.62,145.87,145.84,3.4284]
[1727891287459,25.5075,145.89,145.8,19.0973]
[1727891287757,16.46,145.89,145.86,3.428]
[1727891287951,10.3296,145.9,145.86,3.428]
[1727891288155,10.3296,145.9,145.82,19.95791541]
[1727891288156,5.74502,145.91,145.82,19.95791541]
[1727891288362,5.74502,145.91,145.88,3.4274]
[1727891288665,5.74502,145.91,145.86,16.46]
[1727891288666,0.12502,145.91,145.86,16.46]
[1727891288963,0.12502,145.91,145.86,1.2744]
[1727891289160,3.55202,145.91,145.86,1.2744]
[1727891289861,0.12502,145.91,145.88,3.4275]
[1727891290056,0.12502,145.91,145.86,17.7344]
[1727891290252,0.12502,145.91,145.9,3.4271]
[1727891290462,0.12502,145.91,145.9,19.8871]
[1727891291253,0.12502,145.97,145.9,16.46]
[1727891291758,0.12502,145.97,145.92,3.4266]
[1727891291965,0.12502,145.97,145.9,19.92357204]
[1727891292356,0.12502,145.97,145.96,3.4257]
[1727891292563,0.12518,145.99,145.96,16.46]
[1727891292764,0.12518,145.99,145.96,17.7645]
[1727891293167,0.12518,145.99,145.98,3.4252]
[1727891293563,0.12518,145.99,145.96,1.3045]
[1727891293865,0.12518,145.99,145.73,13.84952]
[1727891293866,0.12518,145.99,145.93,16.46]
[1727891294163,3.55028,145.99,145.95,3.4258]
[1727891294560,0.12518,145.99,145.93,22.08]
[1727891294758,0.12518,145.99,145.93,16.46]
[1727891294965,0.12518,145.99,145.92,1.3101]
[1727891295966,3.4256,145.97,145.93,3.4264]
[1727891296469,3.4258,145.96,145.92,4.7367]
[1727891296965,16.46,145.98,145.91,0.12502]
[1727891297163,3.4263,145.94,145.91,0.12502]
[1727891297565,16.46,145.96,145.91,0.12502]
[1727891297871,22.08,145.96,145.91,0.12502]
[1727891299369,22.08,145.96,145.91,3.55182]
[1727891299370,3.4264,145.94,145.91,3.55182]
[1727891300066,3.4267,145.92,145.91,0.12502]
[1727891300583,31.95,145.96,145.91,0.12502]
[1727891301368,3.4266,145.93,145.91,0.12502]
[1727891301777,31.95,145.96,145.91,0.12502]
[1727891301974,31.95,145.96,145.86,6.9394]
[1727891302871,3.4266,145.93,145.86,6.9394]
[1727891303068,31.95,145.96,145.86,6.9394]
[1727891303580,3.4262,145.94,145.9,3.4269]
[1727891303876,3.4262,145.94,145.91,3.4268]
[1727891304076,3.426,145.95,145.86,33.2694]
[1727891304371,0.12502,145.97,145.9,3.4269]
[1727891304576,3.4261,145.95,145.86,33.2694]
[1727891304776,0.12502,145.97,145.86,33.2694]
[1727891305172,3.4259,145.96,145.89,26.33]
[1727891305374,3.4259,145.96,145.9,5.62]
[1727891305678,0.12502,145.97,145.92,3.4265]
[1727891306568,3.4261,145.95,145.92,3.4265]
[1727891308585,0.12502,145.97,145.9,5.62]
[1727891308886,0.12502,145.97,145.86,27.6494]
[1727891309071,26.33,145.96,145.87,5.62]
[1727891309275,3.427,145.91,145.87,5.62]
[1727891309781,3.4267,145.92,145.89,3.4274]
[1727891310374,5.62,145.94,145.91,3.4268]
[1727891310375,9.0463,145.94,145.91,3.4268]
[1727891310684,5.74502,145.97,145.87,31.95]
[1727891311279,3.4262,145.94,145.9,3.427]
[1727891312080,5.74502,145.97,145.87,31.95]
[1727891312980,26.33,145.94,145.83,2.6431]
[1727891313177,26.33,145.94,145.83,6.9405]
[1727891313178,8.3403,145.93,145.83,6.9405]
[1727891313383,8.3403,145.93,145.84,3.4284]
[1727891313579,8.3403,145.93,145.83,6.9405]
[1727891314391,3.34224232,145.92,145.83,6.9405]
[1727891314688,1.3548,145.92,145.83,6.9405]
[1727891314989,1.3548,145.92,145.82,1.2735]
[1727891314990,26.33,145.9,145.8,5.62]
[1727891315186,5.62,145.89,145.8,5.62]
[1727891315482,3.4281,145.86,145.8,5.62]
[1727891316793,3.4281,145.86,145.82,3.4289]
[1727891318283,3.4281,145.86,145.8,5.62]
[1727891318485,9.03619805,145.89,145.8,5.62]
[1727891318688,26.33,145.87,145.79,0.12502]
[1727891318990,1.3924,145.86,145.79,0.12502]
[1727891319291,3.4291,145.82,145.79,0.12502]
[1727891319789,3.4289,145.83,145.8,3.4295]
[1727891320385,3.429,145.82,145.8,3.4295]
[1727891320787,5.62,145.85,145.79,16.58502]
[1727891321391,3.4287,145.84,145.81,3.4291]
[1727891324590,3.4287,145.84,145.82,3.429]
[1727891325494,3.4287,145.84,145.81,3.4291]
[1727891326584,1.3834,145.87,145.79,16.58502]
[1727891326585,7.0034,145.87,145.79,16.58502]
[1727891327189,3.4284,145.85,145.79,16.58502]
[1727891327394,7.0034,145.87,145.79,16.58502]
[1727891327594,23.4634,145.87,145.79,16.58502]
[1727891327896,23.4634,145.87,145.81,3.4291]
[1727891327897,3.4287,145.84,145.81,3.4291]
[1727891328095,7.0034,145.87,145.79,16.58502]
[1727891328294,3.4285,145.84,145.82,3.4289]
[1727891328491,3.4285,145.84,145.79,22.20502]
[1727891328691,23.4634,145.87,145.79,5.74502]
[1727891329391,23.4634,145.87,145.79,22.20502]
[1727891329991,3.4283,145.86,145.79,22.20502]
[1727891330793,3.4288,145.83,145.79,22.20502]
[1727891331092,23.4634,145.87,145.79,5.74502]
[1727891331297,3.4284,145.85,145.82,3.429]
[1727891332095,3.4283,145.86,145.82,3.429]
[1727891332288,7.0034,145.87,145.82,3.429]
[1727891332797,23.4634,145.87,145.81,3.4291]
[1727891333002,23.4634,145.87,145.79,5.74502]
[1727891333297,23.4634,145.87,145.79,0.12502]
[1727891333298,3.4294,145.81,145.79,0.12502]
[1727891333693,16.46,145.85,145.79,0.12502]
[1727891333694,5.62,145.83,145.79,0.12502]
[1727891333888,9.0488,145.83,145.79,0.12502]
[1727891334294,5.62,145.83,145.79,0.12502]
[1727891334494,9.0489,145.83,145.8,3.4294]
[1727891334891,5.62,145.83,145.8,3.4294]
[1727891335201,3.429,145.82,145.79,3.55462]
[1727891335389,5.62,145.83,145.79,0.12502]
[1727891335700,3.4291,145.82,145.79,3.55472]
[1727891335896,5.62,145.83,145.79,3.55472]
[1727891336296,3.4291,145.82,145.79,3.55472]
[1727891337401,3.4293,145.81,145.79,0.12502]
[1727891338293,5.62,145.83,145.8,3.4295]
[1727891338997,5.62,145.83,145.81,3.4292]
[1727891339401,1.3472,145.86,145.79,0.12502]
[1727891339594,6.9672,145.86,145.79,0.12502]
[1727891339993,6.9672,145.86,145.79,3.55462]
[1727891340396,3.4282,145.86,145.8,16.46]
[1727891340599,3.4282,145.86,145.83,3.4286]
[1727891340799,3.4282,145.86,145.8,16.46]
[1727891341096,3.4282,145.86,145.81,3.4291]
[1727891341304,3.4277,145.88,145.82,16.46]
[1727891341606,5.62,145.89,145.82,16.46]
[1727891341899,3.4277,145.88,145.82,16.46]
[1727891342104,5.62,145.89,145.82,16.46]
[1727891343405,9.0475,145.89,145.86,3.428]
[1727891343603,5.62,145.89,145.82,16.46]
[1727891343804,5.62,145.89,145.84,3.4285]
[1727891344005,5.62,145.89,145.82,16.46]
[1727891344510,9.0475,145.89,145.86,3.4279]
[1727891344804,3.4275,145.89,145.86,3.4279]
[1727891345107,16.46,145.89,145.8,26.1875]
[1727891345303,16.46,145.89,145.81,16.46]
[1727891345603,98.93222,145.91,145.81,16.46]
[1727891345808,82.47222,145.91,145.83,16.46]
[1727891346008,8.43222,145.91,145.83,16.46]
[1727891346411,3.4275,145.89,145.86,3.4281]
[1727891348313,3.4273,145.9,145.87,3.4277]
[1727891348514,7.14852,145.91,145.83,16.46]
[1727891348805,3.4275,145.89,145.86,3.428]
[1727891350813,3.4279,145.87,145.84,3.4284]
[1727891351116,16.46,145.86,145.79,0.12502]
[1727891351313,3.4286,145.84,145.8,3.4294]
[1727891351506,16.46,145.86,145.79,0.12502]
[1727891352211,5.62,145.87,145.79,16.58502]
[1727891352720,1.3096,145.9,145.79,16.58502]
[1727891352915,22.08,145.89,145.79,16.58502]
[1727891353218,3.4281,145.86,145.83,3.4287]